bitfinex/quotes_ETHUSD_20220202
["timestamp","ask_amount","ask_price","bid_price","bid_amount"]
[1643784942949,0.9094068,2749.5,2748.9,0.32768978]
[1643784943345,0.3,2749.4,2748.9,0.32768978]
[1643784943749,0.3,2749.4,2749.1,0.00227233]
[1643784944350,0.6965331,2749.3,2749.1,0.00227233]
[1643784944749,0.9965331,2749.3,2749.1,0.00227233]
[1643784945584,0.6965331,2749.3,2749.1,0.00227233]
[1643784946590,0.9965331,2749.3,2749.1,0.00227233]
[1643784948190,0.3,2749.3,2749.1,0.00227233]
[1643784948591,0.4817,2749.6,2749.1,0.00227233]
[1643784948831,0.4817,2749.6,2748.8,0.44553272]
[1643784948832,0.7817,2749.6,2748.8,0.44553272]
[1643784949435,0.6888855,2749.3,2748.8,0.44553272]
[1643784949831,0.9888855,2749.3,2748.8,0.44553272]
[1643784950034,0.1817,2749.6,2748.8,0.44553272]
[1643784950336,3.6375,2750.1,2748.8,0.44553272]
[1643784950337,2.22110418,2749.8,2748.8,2.06056272]
[1643784950540,7.47,2749.9,2748.9,1.2368]
[1643784950735,7.47,2749.9,2749.0,0.1817]
[1643784950932,7.6517,2749.9,2749.0,0.1817]
[1643784951134,0.80613624,2749.7,2749.2,0.90919]
[1643784952142,0.80613624,2749.7,2749.3,0.9092187]
[1643784953384,7.9517,2749.9,2749.3,0.9092187]
[1643784953586,1.0,2749.8,2749.0,0.1817]
[1643784953790,0.1817,2749.7,2749.2,0.00226874]
[1643784954484,0.17268194,2749.7,2749.2,0.00226874]
[1643784954887,0.68835554,2749.4,2749.2,0.00226874]
[1643784957439,0.98835554,2749.4,2749.2,0.00226874]
[1643784957843,0.68835554,2749.4,2749.2,0.00226874]
[1643784958247,0.1817,2749.8,2749.2,0.00226874]
[1643784958839,0.1817,2749.8,2748.8,1.4555]
[1643784959141,1.53656245,2749.7,2749.1,0.9092773]
[1643784959340,1.53656245,2749.7,2748.9,0.9093]
[1643784959640,0.75191569,2749.2,2748.8,1.4555]
[1643784960085,0.75191569,2749.2,2748.8,1.1555]
[1643784960485,1.52234673,2749.1,2748.8,1.1555]
[1643784960990,1.52234673,2749.1,2748.7,2.3002905]
[1643784961790,0.75191569,2749.2,2748.7,2.3002905]
[1643784963597,0.75191569,2749.2,2749.0,0.00227591]
[1643784964832,1.05191569,2749.2,2749.0,0.00227591]
[1643784967791,0.75191569,2749.2,2749.0,0.00227591]
[1643784968594,0.75191569,2749.2,2748.9,0.01227233]
[1643784969197,0.75191569,2749.2,2748.9,0.92161753]
[1643784969395,0.75191569,2749.2,2748.9,1.22161753]
[1643784971002,0.75191569,2749.2,2748.9,0.31227233]
[1643784972448,0.75191569,2749.2,2748.9,0.01227233]
[1643784973850,0.75191569,2749.2,2749.1,0.00227233]
[1643784974059,0.75191569,2749.2,2748.9,0.01]
[1643784974060,3.65,2749.1,2748.9,0.01]
[1643784974252,1.0,2749.0,2748.9,0.01]
[1643784974450,1.1817,2749.0,2748.9,0.01]
[1643784974750,3.22110418,2749.0,2748.9,0.01]
[1643784974988,1.1817,2749.0,2748.9,0.01]
[1643784975591,3.74510418,2749.0,2748.9,0.01]
[1643784975894,1.7057,2749.0,2748.9,0.01]
[1643784976292,3.98279593,2749.0,2748.9,0.01]
[1643784976701,3.45879593,2749.0,2748.9,0.01]
[1643784976893,0.1817,2749.0,2748.9,0.01]
[1643784977897,2.30963612,2749.0,2748.9,0.01]
[1643784978947,0.1817,2749.0,2748.9,0.01]
[1643784979145,0.1817,2749.1,2748.9,0.01]
[1643784980349,1.66156569,2749.2,2748.9,0.01]
[1643784980750,1.53694401,2749.1,2748.9,0.01]
[1643784981350,2.04202986,2749.2,2748.9,0.01]
[1643784981551,1.53691086,2749.1,2748.9,0.01]
[1643784983590,1.83691086,2749.1,2748.9,0.01]
[1643784983787,1.53691086,2749.0,2748.9,0.01]
[1643784984990,1.71861086,2749.0,2748.9,0.01]
[1643784986667,1.71861086,2749.0,2748.9,0.441747]
[1643784987272,3.75238576,2749.0,2748.9,0.441747]
[1643784987667,4.75238576,2749.0,2748.9,0.441747]
[1643784988073,3.75238576,2749.0,2748.9,0.441747]
[1643784988268,4.75238576,2749.0,2748.9,0.441747]
[1643784988867,3.75238576,2749.0,2748.9,0.441747]
[1643784990291,1.71861086,2749.0,2748.9,0.441747]
[1643784990492,0.1817,2749.1,2748.9,0.441747]
[1643784990685,0.90948,2749.3,2748.9,0.441747]
[1643784990885,1.53692676,2749.2,2748.9,0.441747]
[1643784992892,1.83692676,2749.2,2748.9,0.441747]
[1643784993189,1.69342897,2749.3,2748.9,0.441747]
[1643784993190,1.53692676,2749.1,2748.9,0.441747]
[1643784993390,1.83692676,2749.1,2748.9,0.441747]
[1643784993734,1.69342897,2749.3,2748.9,0.441747]
[1643784993939,1.53691752,2749.2,2748.9,0.441747]
[1643784994136,1.69342897,2749.3,2748.9,0.441747]
[1643784994541,1.99342897,2749.3,2748.9,0.441747]
[1643784994940,1.53692212,2749.2,2748.9,0.441747]
[1643784995742,3.56000788,2749.2,2748.9,0.441747]
[1643784995943,3.56000788,2749.2,2748.5,0.7005355]
[1643784995944,3.35,2749.0,2748.5,0.7005355]
[1643784996146,0.9097,2748.8,2748.5,0.5188355]
[1643784996644,1.53714716,2748.7,2748.5,0.5188355]
[1643784996844,0.87829797,2748.6,2748.5,0.5188355]
[1643785003241,2.41549147,2748.6,2748.5,0.5188355]
[1643785003450,0.87829797,2748.6,2748.5,0.5188355]
[1643785006317,2.41552605,2748.6,2748.5,0.5188355]
[1643785009135,0.87829797,2748.6,2748.5,0.5188355]
[1643785012242,2.41548139,2748.6,2748.5,0.5188355]
[1643785012896,0.87829797,2748.6,2748.5,0.5188355]
[1643785013095,2.41548921,2748.6,2748.5,0.5188355]
[1643785013598,0.87829797,2748.6,2748.5,0.5188355]
[1643785013797,2.4154783,2748.6,2748.5,0.5188355]
[1643785013998,0.87829797,2748.6,2748.5,0.5188355]
[1643785014701,1.17829797,2748.6,2748.5,0.5188355]
[1643785015100,2.71547146,2748.6,2748.5,0.5188355]
[1643785016748,1.037671,2748.3,2748.0,0.4319]
[1643785016948,1.037671,2748.3,2747.6,6.2571235]
[1643785016949,2.7818672,2748.5,2747.7,0.1819]
[1643785017149,1.83729357,2748.4,2747.7,0.1819]
[1643785017349,0.3,2748.4,2747.7,0.1819]
[1643785017749,0.3,2748.4,2747.8,0.31878951]
[1643785019448,0.3,2748.4,2747.8,1.13802914]
[1643785019849,1.2098,2748.4,2747.8,1.13802914]
[1643785021791,1.06019797,2748.6,2747.8,1.43802914]
[1643785021991,1.78800797,2748.6,2747.9,2.16657342]
[1643785022191,1.78800797,2748.6,2748.0,0.1819]
[1643785022992,2.08800797,2748.6,2748.0,0.1819]
[1643785023599,2.26990797,2748.6,2748.0,0.1819]
[1643785024042,0.90984,2748.5,2748.0,0.1819]
[1643785024239,0.90984,2748.4,2747.7,1.4042]
[1643785024438,0.90984,2748.4,2747.7,1.1542]
[1643785024642,0.68160722,2748.1,2747.7,1.1542]
[1643785024837,0.68160722,2748.1,2747.7,0.1819]
[1643785025640,0.68160722,2748.1,2747.6,0.1819]
[1643785026248,0.68160722,2748.1,2747.5,0.1819]
[1643785026647,0.68160722,2748.1,2747.5,0.88588157]
[1643785027049,0.1819,2748.3,2747.5,0.88588157]
[1643785027486,0.17165348,2748.3,2747.5,0.88588157]
[1643785027687,0.17165348,2748.3,2747.9,0.35819909]
[1643785027888,0.4819,2748.4,2747.9,0.35819909]
[1643785028087,1.41158989,2748.4,2747.9,0.35819909]
[1643785028692,1.41158989,2748.4,2747.5,0.88588157]
[1643785028900,2.32137989,2748.4,2747.5,0.88588157]
[1643785029694,2.32137989,2748.4,2747.7,0.36793992]
[1643785030496,1.53739796,2748.3,2747.7,0.36793992]
[1643785030697,2.44721796,2748.3,2747.5,0.88588157]
[1643785030895,0.90982,2748.3,2747.5,0.88588157]
[1643785031544,0.90982,2748.3,2747.5,1.18588157]
[1643785032139,0.90982,2748.3,2747.8,0.41537251]
[1643785033440,1.20982,2748.3,2747.5,0.88588157]
[1643785034048,0.90982,2748.3,2747.5,0.88588157]
[1643785034241,0.90982,2748.3,2747.5,1.18588157]
[1643785034641,0.90982,2748.3,2747.8,0.44855688]
[1643785035293,1.11158989,2748.4,2747.5,0.88588157]
[1643785035491,0.3,2748.3,2747.5,0.88588157]
[1643785035689,1.41158989,2748.4,2747.5,0.88588157]
[1643785035891,1.53737647,2748.3,2747.5,0.88588157]
[1643785036294,1.11158989,2748.4,2747.7,0.38648251]
[1643785036494,1.11158989,2748.4,2747.5,0.88588157]
[1643785036799,1.53736797,2748.3,2747.5,0.88588157]
[1643785037496,1.53736797,2748.3,2747.8,0.36496343]
[1643785037694,1.53736797,2748.3,2747.5,1.18588157]
[1643785038296,1.11158989,2748.4,2747.6,2.99655344]
[1643785038495,0.92968989,2748.4,2747.6,2.08676264]
[1643785038747,0.1819,2748.5,2747.6,2.08676264]
[1643785038948,1.53731754,2748.4,2747.6,2.08676264]
[1643785039751,1.53731754,2748.4,2747.5,3.01780546]
[1643785039952,0.94707953,2748.5,2747.6,1.0]
[1643785040152,1.53730943,2748.4,2747.8,0.9097298]
[1643785040450,1.53730943,2748.4,2747.9,0.3]
[1643785041250,1.53730943,2748.4,2747.9,0.25]
[1643785046092,0.1819,2748.5,2747.9,2.34990468]
[1643785046349,0.1819,2748.9,2748.0,1.6155524]
[1643785046550,1.53714462,2748.8,2748.1,1.2478]
[1643785046747,1.53714462,2748.8,2748.2,0.524]
[1643785046947,0.94339603,2749.0,2748.4,1.25434952]
[1643785047157,1.71894906,2748.9,2748.6,0.9094607]
[1643785047347,0.94339603,2749.0,2748.6,0.9094607]
[1643785047549,1.53702859,2748.9,2748.6,0.9094607]
[1643785047750,0.1819,2749.1,2748.6,0.9094607]
[1643785047955,1.83702687,2749.0,2748.6,0.9094607]
[1643785048253,0.1819,2749.1,2748.6,0.9094607]
[1643785048448,1.53701402,2749.0,2748.6,0.9094607]
[1643785048849,1.53701402,2749.0,2748.6,1.8188907]
[1643785049049,0.1819,2749.1,2748.6,1.8188907]
[1643785049350,1.53698895,2749.0,2748.6,1.8188907]
[1643785049549,0.1817,2749.3,2748.6,1.8188907]
[1643785049754,1.53698474,2749.2,2748.6,1.8188907]
[1643785051795,1.53698474,2749.2,2748.5,2.9928512]
[1643785051994,0.1817,2749.1,2748.5,2.9928512]
[1643785052401,0.1817,2749.2,2748.5,2.9928512]
[1643785052601,1.53701721,2749.1,2748.5,2.9928512]
[1643785052999,1.53701721,2749.1,2748.5,1.174]
[1643785053000,1.83701721,2749.1,2748.5,1.174]
[1643785053296,1.53701721,2749.0,2748.2,1.3161]
[1643785053497,1.71891721,2749.0,2748.2,2.2257209]
[1643785053741,1.53701721,2748.9,2748.2,2.2257209]
[1643785053937,1.53701721,2748.9,2748.5,0.93793351]
[1643785054250,0.1819,2749.1,2748.5,1.84742351]
[1643785054437,1.53708809,2749.0,2748.5,2.14742351]
[1643785054636,0.1817,2749.2,2748.5,2.14742351]
[1643785054836,1.5370494,2749.1,2748.5,2.2771223]
[1643785055043,1.5370494,2749.1,2748.6,0.9094725]
[1643785055639,1.8370494,2749.1,2748.4,1.818945]
[1643785055841,1.7189494,2749.0,2748.4,1.818945]
[1643785056040,1.5370494,2748.9,2748.2,1.74575312]
[1643785056240,0.1819,2749.0,2748.3,1.77700946]
[1643785056642,0.1819,2749.0,2748.3,0.86740506]
[1643785056846,0.1819,2749.1,2748.3,1.16740506]
[1643785057043,1.53709259,2749.0,2748.3,1.16740506]
[1643785058095,1.53709259,2749.0,2748.5,0.9095488]
[1643785058698,0.90966,2748.9,2748.2,3.1351788]
[1643785058899,0.90966,2748.9,2748.2,1.3161]
[1643785059097,1.53709259,2748.8,2748.2,1.3161]
[1643785059298,1.53709259,2748.8,2748.2,1.2661]
[1643785059698,1.53709259,2748.8,2748.2,1.94406271]
[1643785059699,2.44678259,2748.8,2748.2,1.94406271]
[1643785059899,0.3,2749.0,2748.2,1.94406271]
[1643785060097,1.0915,2749.1,2748.2,1.94406271]
[1643785060098,1.53717897,2748.9,2748.2,1.94406271]
[1643785060302,1.3915,2749.1,2748.2,1.94406271]
[1643785060597,1.53714138,2749.0,2748.2,1.94406271]
[1643785060800,1.53714138,2749.0,2748.2,1.2661]
[1643785060997,0.90965,2748.9,2748.2,2.1757185]
[1643785061252,0.3,2748.8,2748.2,2.1757185]
[1643785061442,0.3,2748.8,2748.2,2.0440185]
[1643785061642,0.90965,2748.9,2748.2,2.0440185]
[1643785061842,0.90962,2749.0,2748.2,2.0440185]
[1643785062043,1.53714357,2748.9,2748.3,0.90956]
[1643785062245,0.1819,2749.1,2748.4,0.9095511]
[1643785062445,1.53713828,2749.0,2748.4,0.9095511]
[1643785062646,1.71903828,2749.0,2748.4,0.9095511]
[1643785062854,2.01903828,2749.0,2748.4,0.9095511]
[1643785063047,0.4819,2749.0,2748.4,0.9095511]
[1643785063246,0.1819,2749.0,2748.4,0.8595511]
[1643785063946,0.1819,2749.1,2748.4,0.8595511]
[1643785064147,0.1819,2749.1,2748.5,0.42340159]
[1643785064148,1.53710239,2749.0,2748.5,0.42340159]
[1643785064348,1.53710239,2749.0,2748.6,0.9095155]
[1643785064546,1.53710239,2749.0,2748.3,2.9102909]
[1643785064746,1.83710239,2749.0,2748.3,2.7285909]
[1643785064994,1.53710239,2748.9,2748.2,1.3163]
[1643785065195,1.53710239,2748.9,2748.2,1.4344]
[1643785065595,1.53710239,2748.9,2748.2,1.76339341]
[1643785066095,0.75316547,2748.4,2748.2,1.1344]
[1643785066297,0.1819,2748.9,2748.0,1.0915921]
[1643785066500,1.53722,2748.8,2748.0,1.0915921]
[1643785067299,1.53722,2748.8,2748.0,1.3915921]
[1643785067600,2.24142204,2748.8,2748.4,0.41937033]
[1643785067803,0.1819,2748.9,2748.4,1.32889713]
[1643785068107,0.1819,2749.3,2748.4,1.62889713]
[1643785068304,1.53707036,2749.2,2748.5,0.1819]
[1643785068739,0.72274729,2749.0,2748.5,1.09137]
[1643785069143,7.47,2749.4,2748.5,1.09137]
[1643785069340,1.53701752,2749.3,2748.5,1.09137]
[1643785070139,2.44686867,2749.3,2748.7,0.9094]
[1643785070341,7.77,2749.4,2748.7,4.00287957]
[1643785070540,1.53697234,2749.3,2748.7,0.9094]
[1643785070747,1.53697234,2749.3,2748.7,1.9094]
[1643785071450,1.53697234,2749.3,2748.8,0.9093942]
[1643785071647,0.94521004,2749.2,2748.8,0.9093942]
[1643785072247,7.47,2749.4,2748.9,0.3]
[1643785072493,7.47,2749.4,2748.7,1.1817]
[1643785072694,7.47,2749.4,2748.7,2.1187311]
[1643785072695,1.53697903,2749.3,2748.7,2.1187311]
[1643785072894,1.53697903,2749.3,2748.7,1.8187311]
[1643785073094,1.53697903,2749.3,2748.8,0.90938]
[1643785073698,0.67981435,2749.1,2748.8,0.90938]
[1643785074497,0.67981435,2749.1,2748.7,1.8187311]
[1643785074999,0.67981435,2749.1,2748.7,2.7281211]
[1643785075401,0.67981435,2749.1,2748.7,2.7280882]
[1643785077462,7.77,2749.4,2748.7,2.7280882]
[1643785077664,1.53701437,2749.3,2748.7,2.7280882]
[1643785078270,1.53701437,2749.3,2748.7,2.6980882]
[1643785080202,1.53701437,2749.3,2748.7,2.9980882]
[1643785081606,7.6517,2749.4,2748.7,2.9980882]
[1643785081805,0.90846022,2749.1,2748.7,2.9980882]
[1643785082610,0.90846022,2749.1,2748.8,0.90938]
[1643785083210,0.90846022,2749.1,2748.8,1.8187402]
[1643785083410,7.6517,2749.4,2748.8,1.8187402]
[1643785083613,7.47,2749.4,2748.9,0.3]
[1643785084046,7.47,2749.4,2748.8,1.20938]
[1643785084446,0.74778164,2749.2,2748.8,1.20938]
[1643785085050,0.74778164,2749.2,2749.0,0.9093697]
[1643785085648,7.47,2749.4,2749.0,0.9093697]
[1643785085853,0.1817,2749.7,2749.2,1.0]
[1643785086052,7.47,2749.9,2749.2,1.0]
[1643785086053,7.47,2749.9,2749.3,0.18193]
[1643785086256,7.47,2749.9,2749.4,0.1817]
[1643785086464,7.47,2749.9,2749.5,0.70593]
[1643785086465,7.42154194,2749.9,2749.5,0.70593]
[1643785086654,8.19899124,2750.4,2749.8,0.83128049]
[1643785086855,8.19899124,2750.4,2749.8,1.74030049]
[1643785086856,1.53637267,2750.3,2749.8,1.74030049]
[1643785087156,1.53637267,2750.3,2749.8,2.04030049]
[1643785087499,1.53637267,2750.3,2749.8,2.34030049]
[1643785087700,0.72899124,2750.4,2749.8,2.04030049]
[1643785087899,0.1817,2750.8,2749.8,3.04030049]
[1643785088109,1.53635475,2750.7,2749.9,0.9090027]
[1643785088306,0.1817,2750.6,2750.4,0.38722346]
[1643785088506,8.97,2750.9,2750.3,0.43792933]
[1643785088507,1.53635475,2750.5,2750.3,0.43792933]
[1643785088706,0.1817,2750.8,2750.3,0.43792933]
[1643785088707,1.53635475,2750.4,2750.3,0.43792933]
[1643785088907,1.53635475,2750.4,2750.0,0.3]
[1643785088908,1.48635475,2750.4,2750.0,0.3]
[1643785089115,0.1817,2750.9,2749.9,1.6578]
[1643785089307,0.1817,2750.9,2749.9,2.6578]
[1643785089607,0.76321272,2750.5,2749.9,2.6578]
[1643785090009,0.76321272,2750.5,2750.1,1.31368425]
[1643785090209,0.76321272,2750.5,2750.1,1.61368425]
[1643785091008,0.1817,2750.9,2750.1,1.61368425]
[1643785091250,0.1817,2751.0,2750.1,1.61368425]
[1643785091459,0.1817,2751.0,2750.2,2.15526024]
[1643785091664,0.1817,2751.0,2750.3,1.4328619]
[1643785091858,0.1817,2751.1,2750.3,1.7328619]
[1643785092058,0.1817,2751.1,2750.7,0.81630747]
[1643785092256,0.86191455,2751.3,2750.7,0.81630747]
[1643785092455,0.86191455,2751.3,2750.6,0.524]
[1643785092857,1.16191455,2751.3,2750.6,0.524]
[1643785093056,1.16191455,2751.3,2750.7,0.9087244]
[1643785093456,0.86191455,2751.3,2750.7,0.9087244]
[1643785093855,0.86191455,2751.3,2750.9,0.37229696]
[1643785095095,0.1817,2751.5,2750.9,0.37229696]
[1643785095499,0.1817,2751.7,2750.9,0.37229696]
[1643785095698,0.1817,2751.7,2750.9,1.28098146]
[1643785096304,0.84039595,2751.5,2750.9,1.28098146]
[1643785096502,0.84039595,2751.5,2750.9,2.18960146]
[1643785096704,1.14039595,2751.5,2750.9,0.9086845]
[1643785096910,1.14039595,2751.5,2750.8,1.2468]
[1643785097105,0.1817,2751.4,2750.8,1.2468]
[1643785097703,0.1817,2751.4,2750.9,0.39452969]
[1643785098205,0.1817,2751.4,2750.6,3.0231]
[1643785098403,0.1817,2751.4,2750.2,2.9994237]
[1643785099243,0.1817,2751.4,2750.5,0.39721993]
[1643785099453,0.1817,2751.4,2750.5,1.58221993]
[1643785099843,0.1817,2751.4,2750.5,2.58221993]
[1643785100144,0.1817,2751.4,2750.5,2.88221993]
[1643785100342,0.77992182,2751.3,2750.5,2.88221993]
[1643785100544,0.1817,2751.2,2750.5,2.88221993]
[1643785100943,0.1817,2751.2,2750.5,2.485]
[1643785101144,0.1817,2751.6,2750.5,2.485]
[1643785101751,0.1817,2751.6,2750.7,0.9087334]
[1643785101955,0.0129094,2752.0,2750.8,0.1817]
[1643785101956,0.1817,2751.7,2750.8,0.1817]
[1643785102152,0.67964314,2751.5,2750.9,0.72115155]
[1643785102354,0.1817,2751.9,2750.9,0.72115155]
[1643785102600,0.4817,2751.9,2751.6,0.41532233]
[1643785102900,0.1817,2751.9,2750.9,1.88135155]
[1643785103502,0.77299729,2751.6,2750.9,1.88135155]
[1643785103701,0.1817,2751.9,2751.4,0.38599872]
[1643785104507,0.1817,2752.0,2751.4,0.38599872]
[1643785104701,0.76787058,2751.8,2751.4,0.38599872]
[1643785106106,0.1817,2752.1,2751.4,3.31590494]
[1643785106355,0.6184176,2752.2,2751.4,4.13990494]
[1643785106758,0.6184176,2752.2,2751.4,5.04835494]
[1643785107162,0.6184176,2752.2,2751.9,0.41055329]
[1643785107357,0.6184176,2752.2,2752.0,2.01473166]
[1643785107564,1.76e-05,2752.2,2752.1,4.93753]
[1643785107765,0.1816,2753.2,2752.2,5.8]
[1643785107960,0.67831642,2753.3,2752.3,1.61371]
[1643785108163,0.1816,2753.4,2752.3,1.61371]
[1643785108164,0.67831642,2753.4,2752.3,1.61371]
[1643785108361,0.1816,2753.3,2753.0,0.41648396]
[1643785108563,0.92077595,2753.5,2752.6,1.4320501]
[1643785108564,1.59909237,2753.5,2752.6,1.4320501]
[1643785108960,1.5351157,2753.4,2752.7,0.3]
[1643785109360,0.67831642,2753.6,2752.7,9.16473166]
[1643785109586,6.06581642,2754.1,2752.9,6.85]
[1643785109765,0.1816,2754.1,2753.0,2.53873166]
[1643785110002,8.2528,2754.2,2753.0,2.53873166]
[1643785110003,3.6061,2754.2,2753.1,0.1814]
[1643785110203,2.98287543,2754.6,2753.7,0.79544231]
[1643785110204,0.1814,2754.4,2753.7,0.79544231]
[1643785110409,0.1814,2754.5,2753.7,2.46944231]
[1643785110601,0.67831642,2754.9,2753.9,5.15]
[1643785110803,0.01210158,2755.5,2754.0,3.15206166]
[1643785110804,0.1815,2754.7,2754.0,3.15206166]
[1643785111001,0.1815,2754.7,2754.0,2.43733]
[1643785111200,0.1815,2754.7,2754.1,0.77023665]
[1643785111404,2.01473166,2755.4,2754.1,0.77023665]
[1643785111405,0.67831642,2755.4,2754.3,6.85]
[1643785111608,0.1815,2755.5,2754.4,2.72013166]
[1643785111809,1.74288822,2755.6,2755.5,0.35217712]
[1643785112009,1.74288822,2755.6,2755.5,0.35892232]
[1643785112010,1.0645718,2755.6,2755.5,0.35892232]
[1643785112606,1.0645718,2755.6,2755.3,0.25]
[1643785113009,1.0645718,2755.6,2754.6,0.4314]
[1643785113010,0.1814,2755.5,2754.6,0.4314]
[1643785113211,0.1814,2755.5,2753.9,0.1814]
[1643785113212,0.01265747,2755.3,2753.9,0.1814]
[1643785113406,0.01265747,2755.3,2753.9,0.75167465]
[1643785113407,0.79887629,2754.6,2753.9,0.75167465]
[1643785113606,0.1814,2755.2,2754.0,0.36358105]
[1643785114462,0.82751066,2754.6,2754.0,0.36358105]
[1643785114662,0.82751066,2754.6,2754.0,0.66358105]
[1643785115663,0.1814,2755.0,2754.0,0.66358105]
[1643785115862,0.1814,2755.1,2754.0,0.66358105]
[1643785116067,0.1814,2755.1,2754.1,0.1814]
[1643785116567,0.71432392,2754.5,2754.1,0.1814]
[1643785116767,0.1814,2755.1,2754.1,0.1814]
[1643785117895,1.1814,2755.1,2754.1,0.1814]
[1643785118094,2.48930729,2755.0,2754.0,0.36358105]
[1643785118295,0.1814,2754.9,2754.0,0.36358105]
[1643785118495,0.92033897,2754.3,2754.0,0.36358105]
[1643785119497,0.1814,2754.7,2754.0,0.36358105]
[1643785119998,1.0,2754.9,2754.0,0.36358105]
[1643785120202,0.1814,2754.8,2754.0,0.66358105]
[1643785120397,0.87797516,2755.0,2754.3,0.68595047]
[1643785120795,0.3,2755.0,2754.3,0.68595047]
[1643785121269,0.1814,2755.2,2754.9,0.42244809]
[1643785121459,0.1814,2755.2,2754.9,1.24644809]
[1643785121855,0.1814,2755.2,2755.1,5.98193]
[1643785122055,0.1814,2755.2,2755.1,0.18193]
[1643785122255,0.1814,2755.2,2755.1,1.48193]
[1643785122456,0.1814,2755.2,2755.1,0.48193]
[1643785122655,0.1814,2755.2,2755.1,0.3]
[1643785122861,0.1814,2755.2,2755.1,0.4814]
[1643785123057,0.1814,2755.2,2755.1,0.66333]
[1643785123259,0.1814,2755.2,2755.1,0.4814]
[1643785125310,0.7405748,2755.6,2755.1,0.4814]
[1643785126416,0.7405748,2755.6,2755.5,0.39569088]
[1643785127116,0.7405748,2755.6,2755.2,0.1814]
[1643785127721,0.7405748,2755.6,2755.5,0.33167977]
[1643785128025,0.7405748,2755.6,2754.6,2.7704697]
[1643785128026,1.0405748,2755.6,2755.1,0.1814]
[1643785128222,1.0405748,2755.6,2754.7,0.16543]
[1643785128223,0.01229317,2755.4,2754.7,0.16543]
[1643785128419,0.01229317,2755.4,2754.5,0.1814]
[1643785128748,0.1814,2755.3,2754.5,0.1814]
[1643785128948,0.82760282,2755.1,2754.9,0.32047269]
[1643785129648,0.82760282,2755.1,2754.5,0.80471226]
[1643785130348,0.1814,2755.3,2754.5,0.80471226]
[1643785130750,0.1814,2755.3,2754.5,1.10471226]
[1643785131152,0.1814,2755.3,2754.5,0.3]
[1643785131370,0.1814,2755.3,2754.5,0.3631028]
[1643785131563,0.1814,2755.3,2754.0,0.4314]
[1643785131564,1.53431936,2755.2,2754.0,0.4314]
[1643785131760,2.1814,2755.1,2754.0,0.4314]
[1643785131957,2.1814,2755.1,2753.4,0.4314]
[1643785132160,0.01051642,2755.0,2753.4,0.61333]
[1643785132359,0.94447901,2754.8,2754.1,0.75994823]
[1643785132603,1.24447901,2754.8,2754.4,0.44954578]
[1643785132803,1.24447901,2754.8,2753.4,0.61333]
[1643785133207,0.94447901,2754.8,2753.4,0.61333]
[1643785133401,1.24447901,2754.8,2753.4,0.61333]
[1643785133603,1.99093774,2754.7,2753.4,1.91333]
[1643785133801,0.94447901,2754.8,2753.4,1.91333]
[1643785134003,0.94447901,2754.8,2754.1,0.44344931]
[1643785134202,0.94447901,2754.8,2754.1,0.74344931]
[1643785134802,1.24447901,2754.8,2754.1,0.74344931]
[1643785135404,1.24447901,2754.8,2754.1,0.3]
[1643785135608,1.24447901,2754.8,2753.9,0.1814]
[1643785135609,2.0,2754.7,2753.9,0.1814]
[1643785135815,0.524,2754.6,2753.5,0.1814]
[1643785136010,2.1814,2754.5,2753.5,0.1814]
[1643785136263,2.1814,2754.5,2752.9,1.41093]
[1643785136264,0.524,2754.4,2753.0,0.1814]
[1643785136468,0.90887797,2753.9,2753.5,0.38914002]
[1643785136870,1.20887797,2753.9,2753.5,0.38914002]
[1643785137066,1.20887797,2753.9,2753.2,0.6782073]
[1643785137364,1.20887797,2753.9,2753.2,0.9782073]
[1643785137769,0.1814,2754.1,2753.2,0.9782073]
[1643785137971,0.4814,2754.3,2753.3,0.1814]
[1643785138173,0.1814,2754.3,2753.3,0.1814]
[1643785138665,0.61663564,2754.3,2753.5,0.32356812]
[1643785138865,0.75683709,2754.1,2753.5,0.32356812]
[1643785139067,1.05683709,2754.1,2753.5,0.32356812]
[1643785139266,1.05683709,2754.1,2753.5,0.62356812]
[1643785141302,0.3,2754.1,2753.5,0.62356812]
[1643785141702,0.1814,2754.4,2753.5,0.62356812]
[1643785142303,0.90585712,2754.2,2753.5,0.62356812]
[1643785142503,0.90585712,2754.2,2753.5,0.80496812]
[1643785142703,0.3,2754.1,2753.5,0.80496812]
[1643785143305,0.3,2754.1,2753.5,0.1814]
[1643785143511,0.3,2754.1,2753.2,0.6782073]
[1643785143512,0.3,2754.1,2753.3,0.1814]
[1643785144352,0.41616048,2754.0,2753.3,0.1814]
[1643785145959,0.80614567,2753.5,2753.3,0.1814]
[1643785147602,0.59756048,2754.0,2753.1,0.1814]
[1643785147803,0.59756048,2754.0,2752.9,1.71967814]
[1643785147804,0.59756048,2754.0,2753.0,0.1816]
[1643785149204,1.5346832,2753.9,2753.0,0.1816]
[1643785149405,0.948843,2753.6,2753.0,0.1816]
[1643785149607,0.34529791,2753.5,2753.0,0.1816]
[1643785149805,1.248843,2753.6,2753.0,0.1816]
[1643785150006,0.3,2753.6,2753.0,0.1816]
[1643785150206,0.1816,2754.0,2753.0,0.1816]
[1643785150406,1.53462295,2753.9,2753.0,0.36353]
[1643785150609,0.1814,2754.3,2753.0,0.36353]
[1643785150806,0.44610064,2754.0,2753.3,0.25]
[1643785151028,0.1423,2754.1,2753.4,1.22693755]
[1643785151274,0.1423,2754.1,2753.9,0.75941782]
[1643785151482,0.1423,2754.1,2753.9,0.524]
[1643785151671,0.1423,2754.1,2753.7,0.1814]
[1643785151868,0.1423,2754.1,2753.9,0.42940413]
[1643785153069,0.1423,2754.1,2753.9,1.33699743]
[1643785154284,0.1423,2754.1,2753.9,2.51839743]
[1643785154576,0.1423,2754.1,2754.0,6.95593]
[1643785154776,4.39981642,2755.2,2754.1,6.85]
[1643785155023,1.71557541,2755.1,2754.2,0.524]
[1643785155218,1.53407541,2755.0,2754.9,0.36467206]
[1643785155619,1.53407541,2755.0,2754.5,1.73154684]
[1643785155815,1.53407541,2755.0,2754.5,0.824]
[1643785156628,1.53407541,2755.0,2754.7,0.42980356]
[1643785156820,1.5186071,2755.2,2754.7,0.72980356]
[1643785156821,1.53407541,2754.9,2754.7,0.72980356]
[1643785157033,1.53407541,2754.8,2754.7,0.72980356]
[1643785157221,1.53407541,2755.1,2754.7,0.72980356]
[1643785157821,1.53407541,2755.0,2754.7,0.91120356]
[1643785158022,1.53407541,2754.9,2754.7,1.3887574]